Workbook

Sheet Summary Page
B1: QCTO Hatfield
B2: Fire Engineering Services
B3: Office Fire Protection Systems
B4: 256 Glyn Lane, Hatfield, Pretoria
A6: Project: | B6: QCTO Hatfield
A7: Address: | B7: 256 Glyn Lane, Hatfield, Pretoria
A10: Item No. | B10: Description
A12: 1 | B12: ='Section 1 - P&Gs'!B4 -> Section 01 - Preliminaries and General | D12: ='Section 1 - P&Gs'!F59 -> 0
A13: 2 | B13: ='Section 2 - SPRINKLERS'!B4 -> Section 02 - Sprinkler Installation | D13: ='Section 2 - SPRINKLERS'!F62 -> 0
A14: 3 | B14: ='Section 3 - EQUIPMENT & SIGNAGE'!B4 -> Section 03 - Equipment & Signage | D14: ='Section 3 - EQUIPMENT & SIGNAGE'!E51 -> 0
A15: 4 | B15: ='Section 4 - DETECTION & GAS SUP'!B4 -> Section 04 - Detection & Gas Suppression | D15: ='Section 4 - DETECTION & GAS SUP'!F70 -> 0
A16: 4 | B16: ='Section 5 - Existing equipment '!B4 -> Section 05 - Existing equipment | D16: ='Section 5 - Existing equipment '!F18 -> 0
A17: 6 | B17: Sub - Total | D17: =SUM(D12:D13) -> 0
A19: 7 | B19: VAT | C19: 15% | D19: =D17*15% -> 0
A21: 8 | B21: Total | D21: =D19+D17 -> 0
A24: Tendering Company:
A31: Address:
A38: Date:
A42: Signature:

Sheet Section 1 - P&Gs
B1: QCTO Hatfield
A2: =IF(ISBLANK(C2),"",MAX(A1:$A$1)+0.01) ->  | B2: Fire Engineering Services
B3: Office Fire Protection Systems
B4: Section 01 - Preliminaries and General
A6: ITEM | B6: QCTO Hatfield | C6: UNIT | D6: QTY | E6: RATE | F6: TOTAL
A7: =IF(ISBLANK(C7),"",MAX(A$1:$A6)+0.01) ->  | F7: =IF(ISBLANK(D7),"",D7*E7) -> 
A8: 1 | B8: SECTION 1 - PRELIMINARIES AND GENERAL | F8: =IF(ISBLANK(D8),"",D8*E8) -> 
A9: =IF(ISBLANK(C9),"",MAX(A$1:$A8)+0.01) -> 
A10: =IF(ISBLANK(C10),"",MAX(A$1:$A9)+0.01) -> 1.01 | B10: Site establishment, mobilisation direct costs | C10: Item | D10: 1 | F10: 0
A11: =IF(ISBLANK(C11),"",MAX(A$1:$A10)+0.01) -> 
A12: =IF(ISBLANK(C12),"",MAX(A$1:$A11)+0.01) -> 1.02 | B12: Site destablishment, demobilisation direct costs | C12: Item | D12: 1 | F12: 0
A13: =IF(ISBLANK(C13),"",MAX(A$1:$A12)+0.01) -> 
A14: =IF(ISBLANK(C14),"",MAX(A$1:$A13)+0.01) ->  | B14: Project engineering and management
A15: =IF(ISBLANK(C15),"",MAX(A$1:$A14)+0.01) -> 1.03 | B15: Project Manager | C15: Item | D15: 1 | F15: 0
A16: =IF(ISBLANK(C16),"",MAX(A$1:$A15)+0.01) -> 1.04 | B16: Site Manager | C16: Item | D16: 1 | F16: 0
A17: =IF(ISBLANK(C17),"",MAX(A$1:$A16)+0.01) -> 1.05 | B17: Health and safety | C17: Item | D17: 1 | F17: 0
A18: =IF(ISBLANK(C18),"",MAX(A$1:$A17)+0.01) -> 
A19: =IF(ISBLANK(C19),"",MAX(A$1:$A18)+0.01) -> 1.06 | B19: Commissioning / handover / training sessions | C19: Item | D19: 1 | F19: 0
A20: =IF(ISBLANK(C20),"",MAX(A$1:$A19)+0.01) -> 
A21: =IF(ISBLANK(C21),"",MAX(A$1:$A20)+0.01) -> 1.07 | B21: One year maintenance and guarantee from date of practical completion | C21: Item | D21: 1 | F21: 0
A22: =IF(ISBLANK(C22),"",MAX(A$1:$A21)+0.01) -> 
A23: =IF(ISBLANK(C23),"",MAX(A$1:$A22)+0.01) -> 1.08 | B23: Safety file and contractors pack | C23: Item | D23: 1 | F23: 0
A24: =IF(ISBLANK(C24),"",MAX(A$1:$A23)+0.01) -> 
A25: =IF(ISBLANK(C25),"",MAX(A$1:$A24)+0.01) -> 1.09 | B25: Operating and maintenance manual as per specifications | C25: Item | D25: 1 | F25: 0
A26: =IF(ISBLANK(C26),"",MAX(A$1:$A25)+0.01) -> 
A27: =IF(ISBLANK(C27),"",MAX(A$1:$A26)+0.01) -> 1.10 | B27: Workshop drawings as per specifications | C27: Item | D27: 1 | F27: 0
A28: =IF(ISBLANK(C28),"",MAX(A$1:$A27)+0.01) -> 
A29: =IF(ISBLANK(C29),"",MAX(A$1:$A28)+0.01) -> 1.11 | B29: As-built drawings as per specifications | C29: Item | D29: 1 | F29: 0
A30: =IF(ISBLANK(C30),"",MAX(A$1:$A29)+0.01) -> 
A31: =IF(ISBLANK(C31),"",MAX(A$1:$A30)+0.01) -> 1.12 | B31: Scaffolding and equipment | C31: Item | D31: 1 | F31: 0
A32: =IF(ISBLANK(C32),"",MAX(A$1:$A31)+0.01) -> 
A33: =IF(ISBLANK(C33),"",MAX(A$1:$A32)+0.01) ->  | B33: Any other items not specifically mentioned in this bill for this section (specify below)
A34: =IF(ISBLANK(C34),"",MAX(A$1:$A33)+0.01) -> 
A35: =IF(ISBLANK(C35),"",MAX(A$1:$A34)+0.01) -> 
A36: =IF(ISBLANK(C36),"",MAX(A$1:$A35)+0.01) -> 
A37: =IF(ISBLANK(C37),"",MAX(A$1:$A36)+0.01) -> 
A38: =IF(ISBLANK(C38),"",MAX(A$1:$A37)+0.01) -> 
A39: =IF(ISBLANK(C39),"",MAX(A$1:$A38)+0.01) -> 
A40: =IF(ISBLANK(C40),"",MAX(A$1:$A39)+0.01) -> 
A41: =IF(ISBLANK(C41),"",MAX(A$1:$A40)+0.01) -> 
A42: =IF(ISBLANK(C42),"",MAX(A$1:$A41)+0.01) -> 
A43: =IF(ISBLANK(C43),"",MAX(A$1:$A42)+0.01) -> 
A44: =IF(ISBLANK(C44),"",MAX(A$1:$A43)+0.01) -> 
A45: =IF(ISBLANK(C45),"",MAX(A$1:$A44)+0.01) -> 
A46: =IF(ISBLANK(C46),"",MAX(A$1:$A45)+0.01) -> 
A47: =IF(ISBLANK(C47),"",MAX(A$1:$A46)+0.01) -> 
A48: =IF(ISBLANK(C48),"",MAX(A$1:$A47)+0.01) -> 
A49: =IF(ISBLANK(C49),"",MAX(A$1:$A48)+0.01) -> 
A50: =IF(ISBLANK(C50),"",MAX(A$1:$A49)+0.01) -> 
A51: =IF(ISBLANK(C51),"",MAX(A$1:$A50)+0.01) -> 
A52: =IF(ISBLANK(C52),"",MAX(A$1:$A51)+0.01) -> 
A53: =IF(ISBLANK(C53),"",MAX(A$1:$A52)+0.01) -> 
A54: =IF(ISBLANK(C54),"",MAX(A$1:$A53)+0.01) -> 
A55: =IF(ISBLANK(C55),"",MAX(A$1:$A54)+0.01) -> 
A56: =IF(ISBLANK(C56),"",MAX(A$1:$A55)+0.01) -> 
A57: =IF(ISBLANK(C57),"",MAX(A$1:$A56)+0.01) -> 
A58: =IF(ISBLANK(C58),"",MAX(A$1:$A57)+0.01) -> 
B59: SECTION TOTAL CARRIED TO SUMMARY | F59: =SUM(F7:F58) -> 0

Sheet Section 2 - SPRINKLERS
B1: QCTO Hatfield
B2: Fire Engineering Services
B3: Office Fire Protection Systems
B4: Section 02 - Sprinkler Installation
A6: ITEM | B6: Snow Soft | C6: UNIT | D6: QTY | E6: RATE | F6: TOTAL
A7: 2 | B7: SECTION 2 - SPRINKLER INSTALLATION | F7: =IF(ISBLANK(D7),"",D7*E7) -> 
A8: =IF(ISBLANK(C8),"",MAX(A$1:$A7)+0.01) -> 
A9: =IF(ISBLANK(C9),"",MAX(A$1:$A8)+0.01) ->  | B9: All items in this section shall include all necessary consumables for installation.
A10: =IF(ISBLANK(C10),"",MAX(A$1:$A9)+0.01) -> 
A11: =IF(ISBLANK(C11),"",MAX(A$1:$A10)+0.01) ->  | B11: Sprinkler Piping and Fittings
A12: =IF(ISBLANK(C12),"",MAX(A$1:$A11)+0.01) -> 
A13: =IF(ISBLANK(C13),"",MAX(A$1:$A12)+0.01) ->  | B13: Supply and install SANS 62 Medium Wall black steel piping and fittings complete with all pipe supports and hangers
A14: =IF(ISBLANK(C14),"",MAX(A$1:$A13)+0.01) -> 
A15: =IF(ISBLANK(C15),"",MAX(A$1:$A14)+0.01) ->  | B15: Descriptions of pipes and fittings shall include red paint with a single coat primer and 2 coats enamel paint with a minimum thickness of 25 µm.
A16: =IF(ISBLANK(C16),"",MAX(A$1:$A15)+0.01) -> 
A17: =IF(ISBLANK(C17),"",MAX(A$1:$A16)+0.01) -> 2.01 | B17: 25 mm | C17: m | D17: =6*21+1.5*7+3*7+10*6+8*2+6*27+1.5*4 -> 402 | F17: 0
A18: =IF(ISBLANK(C18),"",MAX(A$1:$A17)+0.01) -> 2.02 | B18: 32 mm | C18: m | D18: =6*14+3*14+1.5*14+6*14+3*14+14*1.5 -> 294 | F18: 0
A19: =IF(ISBLANK(C19),"",MAX(A$1:$A18)+0.01) -> 2.03 | B19: 40 mm | C19: m | D19: =30*1.5 -> 45 | F19: 0
A20: =IF(ISBLANK(C20),"",MAX(A$1:$A19)+0.01) -> 2.04 | B20: 50 mm | C20: m | D20: 0 | F20: 0
A21: =IF(ISBLANK(C21),"",MAX(A$1:$A20)+0.01) -> 2.05 | B21: 65mm | C21: m | D21: 0 | F21: 0
A22: =IF(ISBLANK(C22),"",MAX(A$1:$A21)+0.01) -> 2.06 | B22: 80 mm | C22: m | D22: 100 | F22: 0
A23: =IF(ISBLANK(C23),"",MAX(A$1:$A22)+0.01) -> 2.07 | B23: 100 mm | C23: m | D23: 27 | F23: 0
A24: =IF(ISBLANK(C24),"",MAX(A$1:$A23)+0.01) -> 2.08 | B24: 150 mm | C24: m | D24: 0 | F24: 0
A25: =IF(ISBLANK(C25),"",MAX(A$1:$A24)+0.01) -> 2.09 | B25: 200 mm | C25: m | D25: 0 | F25: 0
A26: =IF(ISBLANK(C26),"",MAX(A$1:$A24)+0.01) ->  | F26: =IF(ISBLANK(D26),"",D26*E26) -> 
A27: =IF(ISBLANK(C27),"",MAX(A$1:$A26)+0.01) ->  | B27: Sprinkler Heads
A28: =IF(ISBLANK(C28),"",MAX(A$1:$A27)+0.01) ->  | B28: Sprinkler heads to be installed as indicated on drawing, including ranges, flanges, connections, fittings, hangers, brackets, threaded rod, etc.
A29: =IF(ISBLANK(C29),"",MAX(A$1:$A28)+0.01) -> 2.10 | B29: Ordinary hazard, 93°C, K80, 15mm brass conventional, standard response with a design density of 5mm/min | C29: No. | D29: 290 | F29: 0
A30: =IF(ISBLANK(C30),"",MAX(A$1:$A29)+0.01) -> 2.11 | B30: High hazard with a design density of 7,5mm/min and activation temperature of 93°C for sprinklers in pump house | C30: No. | D30: 6 | F30: 0
A31: =IF(ISBLANK(C31),"",MAX(A$1:$A30)+0.01) -> 
A32: =IF(ISBLANK(C32),"",MAX(A$1:$A31)+0.01) ->  | B32: ICV Chamber
A33: =IF(ISBLANK(C33),"",MAX(A$1:$A32)+0.01) -> 
A34: =IF(ISBLANK(C34),"",MAX(A$1:$A33)+0.01) ->  | B34: Supply and installation control valve assembly as per typical detail in accordance with SANS 10287, complete with rack and roof sprinklers arrangement, fittings, water alarm and test arrangement. Provision to be made for construction of ICV chamber from double brick masonry walls with concrete screed finish and concrete roof. Workshop drawings shall be provided by the contractor and submitted for approval prior to ordering of any materials or beginning construction. Item rate shall include all necessary fittings and consumables.
A35: =IF(ISBLANK(C35),"",MAX(A$1:$A34)+0.01) -> 
A36: =IF(ISBLANK(C36),"",MAX(A$1:$A35)+0.01) -> 2.12 | B36: Construction of ICV Chamber | C36: Item | D36: 1 | F36: 0
A37: =IF(ISBLANK(C37),"",MAX(A$1:$A36)+0.01) -> 2.13 | B37: 100 mm ICV arrangement | C37: No. | D37: 1 | F37: 0
A38: =IF(ISBLANK(C38),"",MAX(A$1:$A37)+0.01) -> 2.14 | B38: 100 mm flow switch | C38: No. | D38: 1 | F38: 0
A39: =IF(ISBLANK(C39),"",MAX(A$1:$A38)+0.01) -> 2.15 | B39: Manifold for 3 ICVs | C39: Item | D39: 1 | F39: 0
A40: =IF(ISBLANK(C40),"",MAX(A$1:$A39)+0.01) -> 2.16 | B40: All statutory signage including fixing. | C40: Item | D40: 1 | F40: 0
A42: =IF(ISBLANK(C42),"",MAX(A$1:$A39)+0.01) -> 
A43: =IF(ISBLANK(C43),"",MAX(A$1:$A42)+0.01) ->  | B43: Water Supplies & Pumphouse
A44: =IF(ISBLANK(C44),"",MAX(A$1:$A43)+0.01) -> 
A45: =IF(ISBLANK(C45),"",MAX(A$1:$A44)+0.01) -> 2.17 | B45: New circular steel water storage tanks, 953m³ minimum effective capacity including flanges, connections, fittings, hangers, brackets, vortex inhibitors, water level indicator, water inlets, water outlets to sprinklers pump, valves, drain, etc. | C45: No. | D45: 2 | F45: 0
A46: =IF(ISBLANK(C46),"",MAX(A$1:$A45)+0.01) -> 2.18 | B46: New Ø100 suction piping including flanges, isolation valves, connections, fittings, hangers & brackets or stands, etc. complete | C46: m | D46: 20 | F46: 0
A47: =IF(ISBLANK(C47),"",MAX(A$1:$A46)+0.01) -> 2.19 | B47: New Ø100 test return piping including flanges, isolation valves, connections, fittings, hangers, brackets, etc. complete | C47: No. | D47: 20 | F47: 0
A48: =IF(ISBLANK(C48),"",MAX(A$1:$A47)+0.01) -> 2.20 | B48: New Ø100 infill piping including flanges, isolation valves, connections, fittings, hangers, brackets, water mains connection at street, etc. complete consisting of uPVC class 16 underground pipe and painted black medium pipe surface. | C48: No. | D48: 20 | F48: 0
A49: =IF(ISBLANK(C49),"",MAX(A$1:$A48)+0.01) -> 2.21 | B49: Ø100 main u/ground steel piping from pump house to connection in ICV chamber, including flanges, non-return check valves, connections, fittings, brackets, thrust blocks, Denso wrap, end-cap, etc. complete. | C49: No. | D49: 20 | F49: 0
A50: =IF(ISBLANK(C50),"",MAX(A$1:$A49)+0.01) -> 2.22 | B50: Complete pump room piping including auto start arrangement, GVI Test flow meter, etc. (Pump room to be constructed by others) | C50: No. | D50: 1 | F50: 0
A51: =IF(ISBLANK(C51),"",MAX(A$1:$A50)+0.01) -> 2.23 | B51: Complete diesel and electric Driven pumps to ASIB Standards; 1,357 L/min @ 3.62 bar operating capacity as per specification, complete with control panels | C51: No. | D51: 1 | F51: 0
A52: =IF(ISBLANK(C52),"",MAX(A$1:$A51)+0.01) -> 2.24 | B52: Complete jockey or make-up pump | C52: No. | D52: 1 | F52: 0
A53: =IF(ISBLANK(C53),"",MAX(A$1:$A52)+0.01) -> 2.25 | B53: Complete enunciator panel | C53: No. | D53: 1 | F53: 0
A54: =IF(ISBLANK(C54),"",MAX(A$1:$A52)+0.01) -> 2.25 | B54: Complete electrical installation including electrical cable from nearest suitable DB, electrical distribution board suitable for jockey pump and battery chargers, main power supply make-off in panel, etc | C54: Item | D54: 1 | F54: 0
A55: =IF(ISBLANK(C55),"",MAX(A$1:$A53)+0.01) -> 2.26 | B55: 3-Phase 380 VAC DB in pump house fed from 60A CB mains supply. | C55: Item | D55: 1 | F55: 0
A56: =IF(ISBLANK(C56),"",MAX(A$1:$A54)+0.01) -> 2.26 | B56: All statutory signage including fixing. | C56: Item | D56: 1 | F56: 0
A58: =IF(ISBLANK(C58),"",MAX(A$1:$A50)+0.01) ->  | B58: Any other items not specifically mentioned in this bill for this section (specify below)
A59: =IF(ISBLANK(C59),"",MAX(A$1:$A58)+0.01) -> 
A60: =IF(ISBLANK(C60),"",MAX(A$1:$A59)+0.01) -> 
A61: =IF(ISBLANK(C61),"",MAX(A$1:$A60)+0.01) -> 
B62: SECTION TOTAL

Sheet Section 3 - EQUIPMENT & SIGNAGE
B1: QCTO Hatfield
B2: Fire Engineering Services
B3: Office Fire Protection Systems
B4: Section 03 - Equipment & Signage
A6: ITEM | B6: Snow Soft | C6: UNIT | D6: QTY | E6: RATE | F6: TOTAL
A7: 3 | B7: SECTION 3 - EQUIPMENT & SIGNAGE | F7: =IF(ISBLANK(D7),"",D7*E7) -> 
A8: =IF(ISBLANK(C8),"",MAX(A$1:$A7)+0.01) -> 
A9: =IF(ISBLANK(C9),"",MAX(A$1:$A8)+0.01) ->  | B9: Fire Equipment
B10: Supply and install equipment as listed below complete with wooden mounting board
A11: =IF(ISBLANK(C11),"",MAX(A$1:$A10)+0.01) -> 
A12: =IF(ISBLANK(C12),"",MAX(A$1:$A11)+0.01) -> 3.01 | B12: 4.5 kg DCP Fire extinguisher | C12: No. | D12: 0 | F12: 0
A13: =IF(ISBLANK(C13),"",MAX(A$1:$A12)+0.01) -> 3.02 | B13: 30 m fire hose reel | C13: No. | D13: 6 | F13: 0
A15: =IF(ISBLANK(C15),"",MAX(A$1:$A14)+0.01) ->  | B15: Fire Doors
A17: =IF(ISBLANK(C17),"",MAX(A$1:$A13)+0.01) -> 3.03 | B17: Class B - server room & archive | C17: No | D17: 4 | F17: 0
A18: =IF(ISBLANK(C18),"",MAX(A$1:$A14)+0.01) -> 3.03 | B18: Push bars or thumb turns in existing emergency escape and exit doors | C18: No | D18: 3 | F18: 0
A19: =IF(ISBLANK(C19),"",MAX(A$1:$A18)+0.01) -> 
A20: =IF(ISBLANK(C20),"",MAX(A$1:$A19)+0.01) ->  | B20: Signage - 190 x 190 mm
A21: =IF(ISBLANK(C21),"",MAX(A$1:$A20)+0.01) -> 
A22: =IF(ISBLANK(C22),"",MAX(A$1:$A21)+0.01) ->  | B22: Supply and install framed photoluminescent safety and equipment signage fixed to walls using screws or cantilevers or suspended from trusses/ceilings using stainless steel cables
A23: =IF(ISBLANK(C23),"",MAX(A$1:$A22)+0.01) -> 
A24: =IF(ISBLANK(C24),"",MAX(A$1:$A23)+0.01) ->  | B24: Single Sided Fixed to Wall
A25: =IF(ISBLANK(C25),"",MAX(A$1:$A24)+0.01) -> 
A26: =IF(ISBLANK(#REF!),"",MAX(A$1:$A25)+0.01) -> 3.04 | B26: E1 / E2 / E10 - Exit right / left / ahead | C26: No. | D26: 10 | F26: 0
A27: =IF(ISBLANK(C26),"",MAX(A$1:$A26)+0.01) -> 3.05 | B27: E6 - Exit here | C27: No. | D27: 7 | F27: 0
A28: =IF(ISBLANK(C27),"",MAX(A$1:$A27)+0.01) -> 3.06 | B28: F4 / F5 / F6 - FE and HR here / left / right | C28: No. | D28: 12 | F28: 0
A29: =IF(ISBLANK(C28),"",MAX(A$1:$A28)+0.01) -> 3.07 | B29: F45 - Fire exit keep clear | C29: No. | D29: 7 | F29: 0
A30: =IF(ISBLANK(C29),"",MAX(A$1:$A29)+0.01) -> 3.08 | B30: F1 / F2 / F3 - HYD, FE, HR here / left / right | C30: No. | D30: 5 | F30: 0
A32: =IF(ISBLANK(C31),"",MAX(A$1:$A31)+0.01) ->  | B32: Double-Sided Suspended
A33: =IF(ISBLANK(C32),"",MAX(A$1:$A32)+0.01) -> 
A34: =IF(ISBLANK(#REF!),"",MAX(A$1:$A33)+0.01) -> 3.09 | B34: E1 / E2 / E10 - Exit right / left / ahead | C34: No. | D34: 10 | F34: 0
A35: =IF(ISBLANK(#REF!),"",MAX(A$1:$A34)+0.01) -> 3.10 | B35: F4 / F5 / F6 - FE and HR here / left / right | C35: No. | D35: 5 | F35: 0
B37: Any other items not specifically mentioned in this bill for this section (specify below)
F40: =IF(ISBLANK(D40),"",D40*E40) -> 
A44: =IF(ISBLANK(C44),"",MAX(A$1:$A6)+0.01) ->  | F44: =IF(ISBLANK(D44),"",D44*E44) -> 
A45: =IF(ISBLANK(C45),"",MAX(A$1:$A44)+0.01) -> 
A46: =IF(ISBLANK(C46),"",MAX(A$1:$A45)+0.01) -> 
A47: =IF(ISBLANK(C47),"",MAX(A$1:$A46)+0.01) -> 
A48: =IF(ISBLANK(C48),"",MAX(A$1:$A47)+0.01) -> 
A49: =IF(ISBLANK(C49),"",MAX(A$1:$A48)+0.01) -> 
A50: =IF(ISBLANK(C50),"",MAX(A$1:$A49)+0.01) -> 
B51: SECTION TOTAL | F51: =SUM(F7:F50) -> 0

Sheet Section 4 - DETECTION & GAS SUP
B1: QCTO Hatfield
B2: Fire Engineering Services
B3: Office Fire Protection Systems
B4: Section 04 - Detection & Gas Suppression
A6: ITEM | B6: Snow Soft | C6: UNIT | D6: QTY | E6: RATE | F6: TOTAL
A7: 4 | B7: SECTION 4 - DETECTION & GAS SUPPRESSION | F7: =IF(ISBLANK(D7),"",D7*E7) -> 
A8: =IF(ISBLANK(C8),"",MAX(A$1:$A7)+0.01) -> 
A9: =IF(ISBLANK(C9),"",MAX(A$1:$A8)+0.01) ->  | B9: Analogue Addressable Fire Alarm Panel
A10: =IF(ISBLANK(C10),"",MAX(A$1:$A9)+0.01) -> 4.01 | B10: Allow for the procurement, delivery, installation, connection, testing and commissioning of a four loop analogue addressable fire detection and alarm system control panel. | C10: No | D10: 1 | F10: 0
A11: =IF(ISBLANK(C11),"",MAX(A$1:$A10)+0.01) -> 
A12: =IF(ISBLANK(C12),"",MAX(A$1:$A11)+0.01) -> 4.02 | B12: Allow for 220VAC isolator located above FAP to be done by registered electrician. | C12: No. | D12: 1 | F12: 0
A13: =IF(ISBLANK(C13),"",MAX(A$1:$A12)+0.01) -> 
A14: =IF(ISBLANK(C14),"",MAX(A$1:$A13)+0.01) ->  | B14: Network Card
A15: =IF(ISBLANK(C15),"",MAX(A$1:$A14)+0.01) -> 4.03 | B15: Allow for the procurement, installation, testing and commissioning of fault tolerant network card. | C15: No | D15: 1 | F15: 0
A16: =IF(ISBLANK(C16),"",MAX(A$1:$A15)+0.01) -> 
A17: =IF(ISBLANK(C17),"",MAX(A$1:$A16)+0.01) ->  | B17: Stand By Batteries
A18: =IF(ISBLANK(C18),"",MAX(A$1:$A17)+0.01) -> 4.04 | B18: Allow for the procurement, delivery, installation, connection, testing and commissioning of stand by batteries for 24 hour back up and 30 minutes under full alarm load. | C18: No | D18: 2 | F18: 0
A19: =IF(ISBLANK(C19),"",MAX(A$1:$A18)+0.01) -> 
A20: =IF(ISBLANK(C20),"",MAX(A$1:$A19)+0.01) ->  | B20: Lightning Protection Units
A21: =IF(ISBLANK(C21),"",MAX(A$1:$A20)+0.01) -> 4.05 | B21: Allow for procurement and installation of lightning protection units on the mains power supply to the panel | C21: No. | D21: 1 | F21: =IF(ISBLANK(D21),"",D21*E21) -> 0
A22: =IF(ISBLANK(C22),"",MAX(A$1:$A21)+0.01) -> 
A23: =IF(ISBLANK(C23),"",MAX(A$1:$A22)+0.01) ->  | B23: Logbook
A24: =IF(ISBLANK(C24),"",MAX(A$1:$A23)+0.01) -> 4.06 | B24: A log book to be Installed in a holder and installed adjacent to master fire panel | C24: No | D24: 1 | F24: 0
A25: =IF(ISBLANK(C25),"",MAX(A$1:$A24)+0.01) -> 
A26: =IF(ISBLANK(C26),"",MAX(A$1:$A25)+0.01) ->  | B26: Block Plan
A27: =IF(ISBLANK(C27),"",MAX(A$1:$A26)+0.01) -> 4.07 | B27: Provide zone diagram and associated signage, laminated and framed behind glass for the fire panel | C27: No | D27: 1 | F27: 0
A28: =IF(ISBLANK(C28),"",MAX(A$1:$A27)+0.01) -> 
A29: =IF(ISBLANK(C29),"",MAX(A$1:$A28)+0.01) ->  | B29: Analogue Addressable Fire Detectors And Bases
A30: =IF(ISBLANK(C30),"",MAX(A$1:$A29)+0.01) ->  | B30: Allow for the procurement, installation, testing and commissioning of analogue addressable fire detectors and bases as follows:
A31: =IF(ISBLANK(C31),"",MAX(A$1:$A30)+0.01) -> 
A32: =IF(ISBLANK(C32),"",MAX(A$1:$A31)+0.01) -> 4.08 | B32: Optical smoke detectors | C32: No | D32: 6 | F32: 0
A33: =IF(ISBLANK(C33),"",MAX(A$1:$A32)+0.01) -> 4.09 | B33: Optical smoke detectors | C33: No | D33: 6 | F33: 0
A34: =IF(ISBLANK(C34),"",MAX(A$1:$A32)+0.01) -> 
A35: =IF(ISBLANK(C35),"",MAX(A$1:$A34)+0.01) ->  | B35: Analogue Addressable Manual Call Points
A36: =IF(ISBLANK(C36),"",MAX(A$1:$A35)+0.01) -> 4.10 | B36: Allow for the procurement, installation, testing and commissioning of analogue addressable manual fire alarm call points with re-settable elements and protective covers | C36: No | D36: 7 | F36: 0
A37: =IF(ISBLANK(C37),"",MAX(A$1:$A36)+0.01) -> 
A38: =IF(ISBLANK(C38),"",MAX(A$1:$A37)+0.01) ->  | B38: Analogue Addressable Siren/Strobe
A39: =IF(ISBLANK(C39),"",MAX(A$1:$A38)+0.01) -> 4.11 | B39: Allow for the procurement, installation, testing and commissioning of analogue addressable fire siren and strobe units. | C39: No | D39: 12 | F39: =IF(ISBLANK(D39),"",D39*E39) -> 0
A40: =IF(ISBLANK(C40),"",MAX(A$1:$A39)+0.01) -> 
A41: =IF(ISBLANK(C41),"",MAX(A$1:$A40)+0.01) ->  | F41: =IF(ISBLANK(D41),"",D41*E41) -> 
A42: =IF(ISBLANK(C42),"",MAX(A$1:$A41)+0.01) ->  | B42: Line Isolators
A43: =IF(ISBLANK(C43),"",MAX(A$1:$A42)+0.01) -> 4.12 | B43: Allow for the procurement, installation, testing and commissioning of line isolators | C43: No | D43: 2 | F43: =IF(ISBLANK(D43),"",D43*E43) -> 0
A44: =IF(ISBLANK(C44),"",MAX(A$1:$A43)+0.01) -> 
A45: =IF(ISBLANK(C45),"",MAX(A$1:$A44)+0.01) ->  | B45: Fire Resistive Cabling
A46: =IF(ISBLANK(C46),"",MAX(A$1:$A45)+0.01) -> 4.13 | B46: PH30, 2 core, 1.5mm | C46: m | D46: 1,000 | F46: =IF(ISBLANK(D46),"",D46*E46) -> 0
A47: =IF(ISBLANK(C47),"",MAX(A$1:$A46)+0.01) -> 
A48: =IF(ISBLANK(C48),"",MAX(A$1:$A47)+0.01) ->  | B48: Conduit And Couplings
A49: =IF(ISBLANK(C49),"",MAX(A$1:$A48)+0.01) ->  | B49: Allow for procurement and installation of galvanised metal conduit (with necessary couplings, junction boxes, etc.) Conduit to be fixed every 1m with steel saddles. | F49: =IF(ISBLANK(D49),"",D49*E49) -> 
A50: =IF(ISBLANK(C50),"",MAX(A$1:$A49)+0.01) -> 4.14 | B50: 25mm | C50: m | D50: 20
A52: =IF(ISBLANK(C52),"",MAX(A$1:$A51)+0.01) ->  | B52: Gas Suppression
B53: Supply and install clean gas agent (FM200) and detection panel for protection of the below listed volumetric enclosures. | C53: m | D53: 1,000 | F53: =IF(ISBLANK(D53),"",D53*E53) -> 0
A54: =IF(ISBLANK(C54),"",MAX(A$1:$A53)+0.01) -> 4.15 | B54: Server Room (97m3) | C54: kg
A55: =IF(ISBLANK(C55),"",MAX(A$1:$A54)+0.01) -> 4.16 | B55: Archive Room (945m3) | C55: kg
B57: Any other items not specifically mentioned in this bill for this section (specify below)
A59: =IF(ISBLANK(C59),"",MAX(A$1:$A58)+0.01) -> 
A60: =IF(ISBLANK(C60),"",MAX(A$1:$A59)+0.01) -> 
A61: =IF(ISBLANK(C61),"",MAX(A$1:$A60)+0.01) ->  | F61: =IF(ISBLANK(D61),"",D61*E61) -> 
A62: =IF(ISBLANK(C62),"",MAX(A$1:$A61)+0.01) -> 
A63: =IF(ISBLANK(C63),"",MAX(A$1:$A62)+0.01) ->  | F63: =IF(ISBLANK(D63),"",D63*E63) -> 
A64: =IF(ISBLANK(C64),"",MAX(A$1:$A63)+0.01) -> 
A65: =IF(ISBLANK(C65),"",MAX(A$1:$A64)+0.01) -> 
A66: =IF(ISBLANK(C66),"",MAX(A$1:$A65)+0.01) -> 
A68: =IF(ISBLANK(C68),"",MAX(A$1:$A67)+0.01) -> 
A69: =IF(ISBLANK(C69),"",MAX(A$1:$A68)+0.01) -> 
B70: SECTION TOTAL | F70: =SUM(F7:F69) -> 0

Sheet Section 5 - Existing equipment
B1: QCTO Hatfield
B2: Fire Engineering Services
B3: Office Fire Protection Systems
B4: Section 05 - Existing equipment
A6: ITEM | C6: UNIT | D6: QTY | E6: RATE | F6: TOTAL
A7: 5 | B7: SECTION 4 - EXISTING EQUIPMENT | F7: =IF(ISBLANK(D7),"",D7*E7) -> 
A8: =IF(ISBLANK(C8),"",MAX(A$1:$A7)+0.01) -> 
A9: =IF(ISBLANK(C9),"",MAX(A$1:$A8)+0.01) -> 
A10: =IF(ISBLANK(C10),"",MAX(A$1:$A9)+0.01) -> 5.01 | B10: Regular testing of fire detection and suppression system to make sure they will be ready to effectively respond in the event of fire. | C10: No | D10: 1 | F10: 0
A11: =IF(ISBLANK(C11),"",MAX(A$1:$A10)+0.01) -> 
A12: =IF(ISBLANK(C12),"",MAX(A$1:$A11)+0.01) -> 5.02 | B12: Monthly testing of power supply, performance tests, visual sound and smoke management | C12: No. | D12: 1 | F12: 0
A13: =IF(ISBLANK(C13),"",MAX(A$1:$A12)+0.01) -> 
A14: =IF(ISBLANK(C14),"",MAX(A$1:$A13)+0.01) -> 
A15: =IF(ISBLANK(C15),"",MAX(A$1:$A14)+0.01) -> 5.03 | B15: Monthly InspectIion of fire panel and lines to fire sensors zones | C15: No | D15: 1 | F15: 0
A16: =IF(ISBLANK(C16),"",MAX(A$1:$A15)+0.01) -> 
A17: =IF(ISBLANK(C17),"",MAX(A$1:$A16)+0.01) ->  | F17: =IF(ISBLANK(D17),"",D17*E17) -> 
B18: SECTION TOTAL | F18: =SUM(F7:F17) -> 0

Sheet Sect
A1: 1. Regular testing of fire detection and suppression system to make sure they will be ready to effectively respond in the event of fire.
A2: 2. Monthly testing of power supply, performance tests, visual sound and smoke management
A3: 3. Monthly Inspect any fault from fire panel and lines to fire sensors zones

Sheet Sheet3
